[Event "Titled Tuesday Blitz November 15 Late 2022"]
[White "Krallis, Christos"]
[Black "Halvax, Georg"]
[WhiteFideId "4298896"]
[BlackFideId "1619543"]
[WhiteElo "2243"]
[BlackElo "2482"]
[Result "1/2-1/2"]
[Round "06"]
[TimeControl "180+1"]
[Date "2022.11.16"]
[WhiteClock "0:00:07"]
[BlackClock "0:00:53"]

1. e4 {[%clk 0:03:00]}  c5 {[%clk 0:02:59]} 2. Nf3 {[%clk 0:03:00]}  Nc6 {[%clk 0:02:59]} 3. Bb5 {[%clk 0:02:55]}  g6 {[%clk 0:02:59]} 4. d3 {[%clk 0:02:53]}  Bg7 {[%clk 0:02:59]} 5. O-O {[%clk 0:02:53]}  Nf6 {[%clk 0:02:59]} 6. Bxc6 {[%clk 0:02:53]}  bxc6 {[%clk 0:02:58]} 7. a4 {[%clk 0:02:48]}  O-O {[%clk 0:02:57]} 8. Na3 {[%clk 0:02:45]}  Qc7 {[%clk 0:02:57]} 9. Re1 {[%clk 0:02:43]}  d6 {[%clk 0:02:57]} 10. Nc4 {[%clk 0:02:43]}  Bg4 {[%clk 0:02:56]} 11. h3 {[%clk 0:02:42]}  Bxf3 {[%clk 0:02:56]} 12. Qxf3 {[%clk 0:02:43]}  Nd7 {[%clk 0:02:56]} 13. Bf4 {[%clk 0:02:42]}  e5 {[%clk 0:02:55]} 14. Bd2 {[%clk 0:02:40]}  Nb6 {[%clk 0:02:42]} 15. a5 {[%clk 0:02:39]}  Nxc4 {[%clk 0:02:42]} 16. dxc4 {[%clk 0:02:39]}  f5 {[%clk 0:02:40]} 17. Bc3 {[%clk 0:02:36]}  fxe4 {[%clk 0:02:36]} 18. Qxe4 {[%clk 0:02:36]}  Rf4 {[%clk 0:02:35]} 19. Qd3 {[%clk 0:02:36]}  Qf7 {[%clk 0:02:35]} 20. Qxd6 {[%clk 0:02:32]}  Rxf2 {[%clk 0:02:30]} 21. Qxc6 {[%clk 0:02:31]}  Rf8 {[%clk 0:02:27]} 22. Qd5 {[%clk 0:02:24]}  Rxc2 {[%clk 0:02:25]} 23. Rf1 {[%clk 0:01:20]}  Qxd5 {[%clk 0:02:21]} 24. cxd5 {[%clk 0:01:19]}  Rxf1+ {[%clk 0:01:52]} 25. Rxf1 {[%clk 0:01:13]}  e4 {[%clk 0:01:52]} 26. d6 {[%clk 0:00:57]}  Bxc3 {[%clk 0:01:51]} 27. bxc3 {[%clk 0:00:56]}  Rd2 {[%clk 0:01:50]} 28. Rf6 {[%clk 0:00:55]}  e3 {[%clk 0:01:47]} 29. Re6 {[%clk 0:00:54]}  Rd1+ {[%clk 0:01:29]} 30. Kh2 {[%clk 0:00:53]}  e2 {[%clk 0:01:29]} 31. Rxe2 {[%clk 0:00:50]}  Rxd6 {[%clk 0:01:29]} 32. Re8+ {[%clk 0:00:45]}  Kf7 {[%clk 0:01:26]} 33. Rc8 {[%clk 0:00:46]}  Rd5 {[%clk 0:01:21]} 34. Rc7+ {[%clk 0:00:45]}  Kf6 {[%clk 0:01:18]} 35. Rxh7 {[%clk 0:00:43]}  c4 {[%clk 0:01:15]} 36. Rxa7 {[%clk 0:00:42]}  Rd3 {[%clk 0:01:15]} 37. Rc7 {[%clk 0:00:33]}  Rxc3 {[%clk 0:01:15]} 38. a6 {[%clk 0:00:33]}  Ra3 {[%clk 0:01:15]} 39. Rc6+ {[%clk 0:00:33]}  Kg5 {[%clk 0:01:15]} 40. Rc5+ {[%clk 0:00:33]}  Kh6 {[%clk 0:01:15]} 41. Rc6 {[%clk 0:00:30]}  Kg5 {[%clk 0:01:11]} 42. Kg1 {[%clk 0:00:27]}  Ra2 {[%clk 0:01:08]} 43. Rc5+ {[%clk 0:00:25]}  Kh6 {[%clk 0:01:08]} 44. Rxc4 {[%clk 0:00:25]}  Rxa6 {[%clk 0:01:08]} 45. Kf2 {[%clk 0:00:25]}  Ra3 {[%clk 0:01:08]} 46. Kg1 {[%clk 0:00:25]}  Ra2 {[%clk 0:01:07]} 47. Rc5 {[%clk 0:00:25]}  Rb2 {[%clk 0:01:07]} 48. Kh2 {[%clk 0:00:25]}  Rb3 {[%clk 0:01:07]} 49. h4 {[%clk 0:00:25]}  Ra3 {[%clk 0:01:07]} 50. g3 {[%clk 0:00:25]}  Ra4 {[%clk 0:01:05]} 51. Kh3 {[%clk 0:00:25]}  Rb4 {[%clk 0:01:05]} 52. Rc8 {[%clk 0:00:25]}  Kg7 {[%clk 0:01:04]} 53. Rc7+ {[%clk 0:00:24]}  Kg8 {[%clk 0:01:04]} 54. Kg2 {[%clk 0:00:14]}  Rb3 {[%clk 0:01:04]} 55. Kh3 {[%clk 0:00:14]}  Rb4 {[%clk 0:01:04]} 56. Ra7 {[%clk 0:00:14]}  Rc4 {[%clk 0:01:04]} 57. Kg2 {[%clk 0:00:13]}  Rc3 {[%clk 0:01:05]} 58. Rd7 {[%clk 0:00:13]}  Rb3 {[%clk 0:01:05]} 59. Kf2 {[%clk 0:00:14]}  Ra3 {[%clk 0:01:04]} 60. Re7 {[%clk 0:00:14]}  Rb3 {[%clk 0:01:02]} 61. Re3 {[%clk 0:00:15]}  Rb4 {[%clk 0:01:02]} 62. Kf3 {[%clk 0:00:15]}  Kg7 {[%clk 0:01:03]} 63. Re4 {[%clk 0:00:15]}  Rb5 {[%clk 0:01:02]} 64. Kg4 {[%clk 0:00:15]}  Kh6 {[%clk 0:01:01]} 65. Ra4 {[%clk 0:00:15]}  Rc5 {[%clk 0:01:01]} 66. Kf4 {[%clk 0:00:16]}  Rf5+ {[%clk 0:01:02]} 67. Kg4 {[%clk 0:00:15]}  Rb5 {[%clk 0:01:01]} 68. Rd4 {[%clk 0:00:14]}  Ra5 {[%clk 0:01:01]} 69. Kf4 {[%clk 0:00:14]}  Rf5+ {[%clk 0:01:01]} 70. Ke4 {[%clk 0:00:15]}  Rf1 {[%clk 0:01:01]} 71. Rd5 {[%clk 0:00:13]}  Ra1 {[%clk 0:00:57]} 72. g4 {[%clk 0:00:13]}  Rh1 {[%clk 0:00:56]} 73. h5 {[%clk 0:00:07]}  gxh5 {[%clk 0:00:54]} 74. gxh5 {[%clk 0:00:08]}  Rh4+ {[%clk 0:00:53]} 75. Kf3 {[%clk 0:00:08]}  Rxh5 {[%clk 0:00:53]} 76. Rxh5+ {[%clk 0:00:07]}  Kxh5 {[%clk 0:00:53]} 1/2-1/2


[Site "https://www.chess.com"]

[Event "Titled Tuesday Blitz November 15 Late 2022"]
[White "Kuzmicz, Krystian"]
[Black "D`Arruda, Ricardo D."]
[WhiteFideId "1119125"]
[BlackFideId "100692"]
[WhiteElo "2380"]
[BlackElo "2501"]
[Result "1-0"]
[Round "06"]
[TimeControl "180+1"]
[Date "2022.11.16"]
[WhiteClock "0:00:14"]
[BlackClock "0:00:07"]

1. e4 {[%clk 0:03:00]}  c5 {[%clk 0:02:54]} 2. d3 {[%clk 0:03:01]}  e6 {[%clk 0:02:53]} 3. g3 {[%clk 0:03:01]}  d5 {[%clk 0:02:52]} 4. Nd2 {[%clk 0:03:01]}  Nf6 {[%clk 0:02:52]} 5. Bg2 {[%clk 0:03:02]}  dxe4 {[%clk 0:02:50]} 6. dxe4 {[%clk 0:03:02]}  Nc6 {[%clk 0:02:49]} 7. Ngf3 {[%clk 0:03:01]}  b6 {[%clk 0:02:48]} 8. O-O {[%clk 0:03:01]}  Bb7 {[%clk 0:02:48]} 9. e5 {[%clk 0:03:00]}  Nd5 {[%clk 0:02:48]} 10. Qe2 {[%clk 0:02:56]}  Be7 {[%clk 0:02:47]} 11. Ne4 {[%clk 0:02:56]}  O-O {[%clk 0:02:46]} 12. Bg5 {[%clk 0:02:56]}  Bxg5 {[%clk 0:02:38]} 13. Nexg5 {[%clk 0:02:39]}  Nd4 {[%clk 0:02:33]} 14. Nxd4 {[%clk 0:02:32]}  Qxg5 {[%clk 0:02:30]} 15. Nf3 {[%clk 0:02:05]}  Qe7 {[%clk 0:02:23]} 16. Rfe1 {[%clk 0:02:02]}  Rfd8 {[%clk 0:02:18]} 17. a3 {[%clk 0:02:01]}  Rd7 {[%clk 0:02:16]} 18. Nd2 {[%clk 0:01:58]}  Rad8 {[%clk 0:02:11]} 19. Ne4 {[%clk 0:01:58]}  Nc7 {[%clk 0:01:52]} 20. Nd6 {[%clk 0:01:57]}  Bxg2 {[%clk 0:01:50]} 21. Kxg2 {[%clk 0:01:58]}  Ne8 {[%clk 0:01:50]} 22. Ne4 {[%clk 0:01:58]}  Rd5 {[%clk 0:01:46]} 23. f4 {[%clk 0:01:57]}  f5 {[%clk 0:01:33]} 24. exf6 {[%clk 0:01:14]}  Nxf6 {[%clk 0:01:32]} 25. Nf2 {[%clk 0:01:13]}  Rd2 {[%clk 0:01:29]} 26. Qf3 {[%clk 0:01:07]}  Rxc2 {[%clk 0:01:25]} 27. Kg1 {[%clk 0:01:08]}  Rdd2 {[%clk 0:01:24]} 28. Rf1 {[%clk 0:00:58]}  Qd6 {[%clk 0:01:16]} 29. Rae1 {[%clk 0:00:57]}  Kf7 {[%clk 0:01:06]} 30. g4 {[%clk 0:00:44]}  Qd5 {[%clk 0:01:05]} 31. Qh3 {[%clk 0:00:32]}  Qd4 {[%clk 0:00:55]} 32. Re3 {[%clk 0:00:20]}  Qxf4 {[%clk 0:00:37]} 33. Rf3 {[%clk 0:00:19]}  Qg5 {[%clk 0:00:33]} 34. Qg3 {[%clk 0:00:19]}  e5 {[%clk 0:00:24]} 35. h4 {[%clk 0:00:19]}  Qg6 {[%clk 0:00:23]} 36. g5 {[%clk 0:00:19]}  e4 {[%clk 0:00:23]} 37. Rf4 {[%clk 0:00:16]}  Kg8 {[%clk 0:00:20]} 38. Nxe4 {[%clk 0:00:13]}  Rg2+ {[%clk 0:00:18]} 39. Qxg2 {[%clk 0:00:11]}  Rxg2+ {[%clk 0:00:19]} 40. Kxg2 {[%clk 0:00:12]}  h6 {[%clk 0:00:16]} 41. Nxf6+ {[%clk 0:00:12]}  gxf6 {[%clk 0:00:16]} 42. Rxf6 {[%clk 0:00:12]}  Qe4+ {[%clk 0:00:14]} 43. Kg3 {[%clk 0:00:13]}  hxg5 {[%clk 0:00:14]} 44. hxg5 {[%clk 0:00:14]}  Qe3+ {[%clk 0:00:13]} 45. Kg4 {[%clk 0:00:14]}  Qe4+ {[%clk 0:00:13]} 46. R1f4 {[%clk 0:00:14]}  Qg2+ {[%clk 0:00:13]} 47. Kf5 {[%clk 0:00:14]}  Qd5+ {[%clk 0:00:13]} 48. Kg6 {[%clk 0:00:14]}  Qd3+ {[%clk 0:00:13]} 49. R4f5 {[%clk 0:00:15]}  Qd8 {[%clk 0:00:06]} 50. Kh6 {[%clk 0:00:14]}  Qf8+ {[%clk 0:00:07]} 51. Rxf8# {[%clk 0:00:14]} 1-0


[Site "https://www.chess.com"]

[Event "Titled Tuesday Blitz November 15 Late 2022"]
[White "Liu, Kelsey"]
[Black "Rodriguez Santiago, Jaime"]
[WhiteFideId "30944481"]
[BlackFideId "3100898"]
[WhiteElo "2280"]
[BlackElo "2025"]
[Result "0-1"]
[Round "06"]
[TimeControl "180+1"]
[Date "2022.11.16"]
[WhiteClock "0:00:01"]
[BlackClock "0:00:02"]

1. e4 {[%clk 0:03:00]}  c6 {[%clk 0:02:59]} 2. d4 {[%clk 0:03:00]}  d5 {[%clk 0:02:59]} 3. e5 {[%clk 0:02:59]}  Bf5 {[%clk 0:02:59]} 4. Nc3 {[%clk 0:02:57]}  e6 {[%clk 0:02:58]} 5. g4 {[%clk 0:02:58]}  Bg6 {[%clk 0:02:56]} 6. Nge2 {[%clk 0:02:58]}  h5 {[%clk 0:02:56]} 7. Nf4 {[%clk 0:02:58]}  Bh7 {[%clk 0:02:56]} 8. Nxh5 {[%clk 0:02:44]}  c5 {[%clk 0:02:56]} 9. Be3 {[%clk 0:02:42]}  Nc6 {[%clk 0:02:55]} 10. f4 {[%clk 0:02:36]}  Nge7 {[%clk 0:02:43]} 11. dxc5 {[%clk 0:02:12]}  d4 {[%clk 0:02:41]} 12. Nb5 {[%clk 0:02:12]}  Nc8 {[%clk 0:01:51]} 13. Bf2 {[%clk 0:02:05]}  Bxc5 {[%clk 0:01:49]} 14. Nxg7+ {[%clk 0:02:05]}  Kf8 {[%clk 0:01:48]} 15. Nh5 {[%clk 0:02:03]}  Qa5+ {[%clk 0:01:37]} 16. Qd2 {[%clk 0:01:58]}  Bb4 {[%clk 0:01:29]} 17. c3 {[%clk 0:01:59]}  dxc3 {[%clk 0:01:28]} 18. bxc3 {[%clk 0:01:58]}  Be7 {[%clk 0:01:22]} 19. f5 {[%clk 0:01:39]}  Bxf5 {[%clk 0:01:13]} 20. gxf5 {[%clk 0:01:35]}  Rxh5 {[%clk 0:01:13]} 21. Be2 {[%clk 0:01:16]}  Rh8 {[%clk 0:01:09]} 22. f6 {[%clk 0:01:14]}  Ba3 {[%clk 0:01:05]} 23. Be3 {[%clk 0:00:57]}  a6 {[%clk 0:00:50]} 24. Bh6+ {[%clk 0:00:49]}  Ke8 {[%clk 0:00:46]} 25. Rd1 {[%clk 0:00:44]}  Nxe5 {[%clk 0:00:21]} 26. Nxa3 {[%clk 0:00:35]}  Nb6 {[%clk 0:00:05]} 27. Qd6 {[%clk 0:00:25]}  Nc6 {[%clk 0:00:03]} 28. Bc1 {[%clk 0:00:12]}  Qe5 {[%clk 0:00:03]} 29. Qxe5 {[%clk 0:00:12]}  Nxe5 {[%clk 0:00:02]} 30. c4 {[%clk 0:00:07]}  Nbd7 {[%clk 0:00:02]} 31. Nc2 {[%clk 0:00:06]}  Rh4 {[%clk 0:00:02]} 32. Bb2 {[%clk 0:00:06]}  Rc8 {[%clk 0:00:02]} 33. Bf1 {[%clk 0:00:02]}  Nxc4 {[%clk 0:00:02]} 34. Bc3 {[%clk 0:00:02]}  Nce5 {[%clk 0:00:02]} 35. Bxe5 {[%clk 0:00:02]}  Nxe5 {[%clk 0:00:02]} 36. Bd3 {[%clk 0:00:01]}  Nd7 {[%clk 0:00:02]} 0-1


[Site "https://www.chess.com"]

[Event "Titled Tuesday Blitz November 15 Late 2022"]
[White "Makridis, Dimitrios"]
[Black "Chigaev, Maksim"]
[WhiteFideId "25864475"]
[BlackFideId "4108116"]
[WhiteElo "2272"]
[BlackElo "2541"]
[Result "1/2-1/2"]
[Round "06"]
[TimeControl "180+1"]
[Date "2022.11.15"]
[WhiteClock "0:00:07"]
[BlackClock "0:00:07"]

1. e4 {[%clk 0:02:53]}  c5 {[%clk 0:03:00]} 2. Nf3 {[%clk 0:02:51]}  e6 {[%clk 0:03:00]} 3. d3 {[%clk 0:02:50]}  Nc6 {[%clk 0:02:59]} 4. g3 {[%clk 0:02:50]}  Nf6 {[%clk 0:03:00]} 5. Bg2 {[%clk 0:02:50]}  d6 {[%clk 0:03:00]} 6. O-O {[%clk 0:02:50]}  Be7 {[%clk 0:03:01]} 7. c3 {[%clk 0:02:51]}  O-O {[%clk 0:03:01]} 8. Re1 {[%clk 0:02:51]}  e5 {[%clk 0:02:59]} 9. h3 {[%clk 0:02:51]}  h6 {[%clk 0:02:57]} 10. d4 {[%clk 0:02:51]}  cxd4 {[%clk 0:02:42]} 11. cxd4 {[%clk 0:02:52]}  exd4 {[%clk 0:02:41]} 12. Nxd4 {[%clk 0:02:52]}  Nxd4 {[%clk 0:02:40]} 13. Qxd4 {[%clk 0:02:53]}  Be6 {[%clk 0:02:40]} 14. Nc3 {[%clk 0:02:53]}  Nd7 {[%clk 0:02:40]} 15. Bf4 {[%clk 0:02:51]}  Ne5 {[%clk 0:02:30]} 16. Rad1 {[%clk 0:02:44]}  Qc7 {[%clk 0:02:08]} 17. Kh2 {[%clk 0:02:33]}  a6 {[%clk 0:02:06]} 18. Rc1 {[%clk 0:02:29]}  Qb8 {[%clk 0:01:55]} 19. Nd5 {[%clk 0:02:25]}  Bxd5 {[%clk 0:01:52]} 20. Qxd5 {[%clk 0:02:25]}  b5 {[%clk 0:01:46]} 21. b3 {[%clk 0:02:21]}  Bg5 {[%clk 0:01:42]} 22. Bxg5 {[%clk 0:02:17]}  hxg5 {[%clk 0:01:41]} 23. f4 {[%clk 0:02:00]}  gxf4 {[%clk 0:01:42]} 24. gxf4 {[%clk 0:02:01]}  Ng6 {[%clk 0:01:39]} 25. Rf1 {[%clk 0:01:40]}  Ra7 {[%clk 0:01:20]} 26. Rcd1 {[%clk 0:01:30]}  Rc7 {[%clk 0:01:10]} 27. f5 {[%clk 0:01:23]}  Ne5 {[%clk 0:00:51]} 28. f6 {[%clk 0:01:19]}  Rc2 {[%clk 0:00:49]} 29. Rd2 {[%clk 0:01:17]}  Rfc8 {[%clk 0:00:42]} 30. fxg7 {[%clk 0:01:08]}  Kxg7 {[%clk 0:00:37]} 31. Kh1 {[%clk 0:01:05]}  R8c5 {[%clk 0:00:30]} 32. Qd4 {[%clk 0:01:04]}  Rxd2 {[%clk 0:00:30]} 33. Qxd2 {[%clk 0:01:05]}  Qd8 {[%clk 0:00:29]} 34. Qf4 {[%clk 0:01:01]}  Qe7 {[%clk 0:00:28]} 35. Rg1 {[%clk 0:00:58]}  Ng6 {[%clk 0:00:28]} 36. Qd2 {[%clk 0:00:52]}  Qe5 {[%clk 0:00:25]} 37. Rd1 {[%clk 0:00:52]}  a5 {[%clk 0:00:22]} 38. a4 {[%clk 0:00:42]}  b4 {[%clk 0:00:15]} 39. Qf2 {[%clk 0:00:27]}  Rc3 {[%clk 0:00:10]} 40. Rf1 {[%clk 0:00:22]}  Rc7 {[%clk 0:00:10]} 41. Kg1 {[%clk 0:00:10]}  Qc5 {[%clk 0:00:10]} 42. Qxc5 {[%clk 0:00:06]}  dxc5 {[%clk 0:00:10]} 43. Rf5 {[%clk 0:00:03]}  f6 {[%clk 0:00:05]} 44. Bf1 {[%clk 0:00:03]}  Ne5 {[%clk 0:00:05]} 45. Kf2 {[%clk 0:00:04]}  c4 {[%clk 0:00:05]} 46. Bxc4 {[%clk 0:00:04]}  Nxc4 {[%clk 0:00:03]} 47. bxc4 {[%clk 0:00:05]}  Rxc4 {[%clk 0:00:02]} 48. Rxa5 {[%clk 0:00:05]}  Rxe4 {[%clk 0:00:03]} 49. Rb5 {[%clk 0:00:05]}  Kg6 {[%clk 0:00:03]} 50. Kf3 {[%clk 0:00:05]}  Rh4 {[%clk 0:00:03]} 51. Kg3 {[%clk 0:00:05]}  Rc4 {[%clk 0:00:03]} 52. a5 {[%clk 0:00:06]}  Rc3+ {[%clk 0:00:02]} 53. Kf4 {[%clk 0:00:06]}  Ra3 {[%clk 0:00:03]} 54. h4 {[%clk 0:00:06]}  b3 {[%clk 0:00:03]} 55. h5+ {[%clk 0:00:06]}  Kh6 {[%clk 0:00:03]} 56. Kf5 {[%clk 0:00:05]}  Kxh5 {[%clk 0:00:04]} 57. Kxf6+ {[%clk 0:00:05]}  Kg4 {[%clk 0:00:05]} 58. Ke6 {[%clk 0:00:05]}  Kf3 {[%clk 0:00:05]} 59. Kd6 {[%clk 0:00:05]}  Ke3 {[%clk 0:00:06]} 60. Kc6 {[%clk 0:00:06]}  Kd3 {[%clk 0:00:06]} 61. Kb6 {[%clk 0:00:06]}  Kc2 {[%clk 0:00:05]} 62. a6 {[%clk 0:00:07]}  b2 {[%clk 0:00:06]} 63. a7 {[%clk 0:00:06]}  Rb3 {[%clk 0:00:05]} 64. a8=Q {[%clk 0:00:05]}  Rxb5+ {[%clk 0:00:05]} 65. Kxb5 {[%clk 0:00:06]}  b1=Q+ {[%clk 0:00:06]} 66. Ka6 {[%clk 0:00:05]}  Qa2+ {[%clk 0:00:06]} 67. Kb7 {[%clk 0:00:06]}  Qd5+ {[%clk 0:00:06]} 68. Kb8 {[%clk 0:00:07]}  Qxa8+ {[%clk 0:00:07]} 69. Kxa8 {[%clk 0:00:07]} 1/2-1/2


[Site "https://www.chess.com"]

[Event "Titled Tuesday Blitz November 15 Late 2022"]
[White "Megalios, Konstantinos"]
[Black "Curtis, John"]
[WhiteFideId "4238044"]
[BlackFideId "3200256"]
[WhiteElo "2277"]
[BlackElo "2203"]
[Result "1-0"]
[Round "06"]
[TimeControl "180+1"]
[Date "2022.11.16"]
[WhiteClock "0:00:43"]
[BlackClock "0:00:54"]

1. e4 {[%clk 0:02:55]}  c5 {[%clk 0:02:57]} 2. Nf3 {[%clk 0:02:54]}  d6 {[%clk 0:02:56]} 3. d4 {[%clk 0:02:55]}  cxd4 {[%clk 0:02:56]} 4. Nxd4 {[%clk 0:02:55]}  Nf6 {[%clk 0:02:57]} 5. Nc3 {[%clk 0:02:56]}  e6 {[%clk 0:02:57]} 6. g4 {[%clk 0:02:55]}  Nfd7 {[%clk 0:02:55]} 7. Be3 {[%clk 0:02:52]}  a6 {[%clk 0:02:55]} 8. g5 {[%clk 0:02:51]}  b5 {[%clk 0:02:55]} 9. h4 {[%clk 0:02:51]}  g6 {[%clk 0:02:42]} 10. a3 {[%clk 0:02:47]}  e5 {[%clk 0:02:31]} 11. Nb3 {[%clk 0:02:21]}  Bb7 {[%clk 0:02:22]} 12. h5 {[%clk 0:02:19]}  Rg8 {[%clk 0:02:10]} 13. hxg6 {[%clk 0:02:08]}  hxg6 {[%clk 0:02:09]} 14. Qg4 {[%clk 0:01:51]}  Nc5 {[%clk 0:02:04]} 15. Nxc5 {[%clk 0:01:40]}  dxc5 {[%clk 0:02:03]} 16. Rd1 {[%clk 0:01:41]}  Qc8 {[%clk 0:01:58]} 17. Qxc8+ {[%clk 0:01:10]}  Bxc8 {[%clk 0:01:57]} 18. Nd5 {[%clk 0:01:10]}  Nd7 {[%clk 0:01:17]} 19. Nc7+ {[%clk 0:01:04]}  Kd8 {[%clk 0:01:11]} 20. Nxa8 {[%clk 0:01:05]}  c4 {[%clk 0:01:03]} 21. Rh7 {[%clk 0:01:00]}  Bb7 {[%clk 0:00:57]} 22. Rxf7 {[%clk 0:00:55]}  Be7 {[%clk 0:00:57]} 23. Nb6 {[%clk 0:00:54]}  Bc6 {[%clk 0:00:57]} 24. Nxd7 {[%clk 0:00:48]}  Bxd7 {[%clk 0:00:54]} 25. Bh3 {[%clk 0:00:48]}  Ke8 {[%clk 0:00:55]} 26. Rxe7+ {[%clk 0:00:47]}  Kxe7 {[%clk 0:00:55]} 27. Rxd7+ {[%clk 0:00:47]}  Ke8 {[%clk 0:00:55]} 28. Ra7 {[%clk 0:00:47]}  Rf8 {[%clk 0:00:55]} 29. Ra8+ {[%clk 0:00:43]}  Ke7 {[%clk 0:00:55]} 30. Rxf8 {[%clk 0:00:44]}  Kxf8 {[%clk 0:00:54]} 31. Bc8 {[%clk 0:00:43]}  c3 {[%clk 0:00:55]} 32. bxc3 {[%clk 0:00:43]}  a5 {[%clk 0:00:54]} 33. Ba6 {[%clk 0:00:42]}  b4 {[%clk 0:00:54]} 34. cxb4 {[%clk 0:00:42]}  axb4 {[%clk 0:00:54]} 35. axb4 {[%clk 0:00:43]} 1-0


[Site "https://www.chess.com"]

[Event "Titled Tuesday Blitz November 15 Late 2022"]
[White "Mendonca, Mateus Nakajo"]
[Black "Castella Garcia, Fausto"]
[WhiteFideId "2110954"]
[BlackFideId "3501922"]
[WhiteElo "2310"]
[BlackElo "2245"]
[Result "1-0"]
[Round "06"]
[TimeControl "180+1"]
[Date "2022.11.16"]
[WhiteClock "0:00:41"]
[BlackClock "0:00:28"]

1. d4 {[%clk 0:03:00]}  Nf6 {[%clk 0:02:58]} 2. Nf3 {[%clk 0:02:59]}  g6 {[%clk 0:02:57]} 3. g3 {[%clk 0:03:00]}  Bg7 {[%clk 0:02:57]} 4. Bg2 {[%clk 0:03:01]}  c5 {[%clk 0:02:56]} 5. O-O {[%clk 0:03:00]}  cxd4 {[%clk 0:02:56]} 6. Nxd4 {[%clk 0:03:00]}  O-O {[%clk 0:02:55]} 7. c4 {[%clk 0:02:59]}  Nc6 {[%clk 0:02:55]} 8. Nc3 {[%clk 0:02:59]}  Qa5 {[%clk 0:02:55]} 9. Nb3 {[%clk 0:02:54]}  Qh5 {[%clk 0:02:53]} 10. e4 {[%clk 0:02:54]}  Qxd1 {[%clk 0:02:50]} 11. Rxd1 {[%clk 0:02:55]}  d6 {[%clk 0:02:49]} 12. c5 {[%clk 0:02:42]}  dxc5 {[%clk 0:02:46]} 13. Nxc5 {[%clk 0:02:42]}  Bg4 {[%clk 0:02:37]} 14. f3 {[%clk 0:02:38]}  Bc8 {[%clk 0:02:34]} 15. Be3 {[%clk 0:02:23]}  b6 {[%clk 0:02:19]} 16. Nb3 {[%clk 0:02:23]}  Ba6 {[%clk 0:02:12]} 17. a4 {[%clk 0:02:12]}  Rac8 {[%clk 0:02:09]} 18. a5 {[%clk 0:02:09]}  Bc4 {[%clk 0:01:51]} 19. Nd2 {[%clk 0:02:07]}  Nxa5 {[%clk 0:01:49]} 20. b4 {[%clk 0:02:03]}  Nb3 {[%clk 0:01:41]} 21. Rxa7 {[%clk 0:01:58]}  Nxd2 {[%clk 0:01:02]} 22. Rxd2 {[%clk 0:01:53]}  Rfd8 {[%clk 0:00:57]} 23. Rxd8+ {[%clk 0:01:48]}  Rxd8 {[%clk 0:00:57]} 24. Bxb6 {[%clk 0:01:45]}  Rd3 {[%clk 0:00:57]} 25. Na4 {[%clk 0:01:32]}  Nd7 {[%clk 0:00:52]} 26. Bf1 {[%clk 0:00:58]}  Rd1 {[%clk 0:00:48]} 27. Rxd7 {[%clk 0:00:58]}  Rxf1+ {[%clk 0:00:44]} 28. Kg2 {[%clk 0:00:58]}  Bf6 {[%clk 0:00:37]} 29. Nb2 {[%clk 0:00:50]}  Be2 {[%clk 0:00:33]} 30. Rd2 {[%clk 0:00:48]}  Bb5 {[%clk 0:00:33]} 31. Nd3 {[%clk 0:00:47]}  Rb1 {[%clk 0:00:32]} 32. e5 {[%clk 0:00:46]}  Bg5 {[%clk 0:00:29]} 33. f4 {[%clk 0:00:45]}  Bh6 {[%clk 0:00:29]} 34. Bc5 {[%clk 0:00:44]}  f6 {[%clk 0:00:29]} 35. Bxe7 {[%clk 0:00:42]}  fxe5 {[%clk 0:00:28]} 36. Nxe5 {[%clk 0:00:42]}  Bg7 {[%clk 0:00:28]} 37. Rd8+ {[%clk 0:00:41]} 1-0


[Site "https://www.chess.com"]

[Event "Titled Tuesday Blitz November 15 Late 2022"]
[White "Mikaelyan, Arman"]
[Black "Mr_Penings"]
[WhiteFideId "13304852"]
[WhiteElo "2456"]
[BlackElo "2684"]
[Result "1-0"]
[Round "06"]
[TimeControl "180+1"]
[Date "2022.11.15"]
[WhiteClock "0:00:42"]
[BlackClock "0:00:02"]

1. d4 {[%clk 0:03:00]}  Nf6 {[%clk 0:02:59]} 2. Bf4 {[%clk 0:03:00]}  g6 {[%clk 0:02:58]} 3. Nc3 {[%clk 0:03:00]}  d5 {[%clk 0:02:58]} 4. e3 {[%clk 0:03:00]}  Bg7 {[%clk 0:02:58]} 5. h4 {[%clk 0:03:00]}  h5 {[%clk 0:02:58]} 6. Be2 {[%clk 0:03:00]}  a6 {[%clk 0:02:56]} 7. Nf3 {[%clk 0:03:00]}  Nbd7 {[%clk 0:02:50]} 8. Ne5 {[%clk 0:02:56]}  Nf8 {[%clk 0:02:37]} 9. Qd2 {[%clk 0:02:52]}  Ne6 {[%clk 0:02:36]} 10. Bg3 {[%clk 0:02:52]}  c5 {[%clk 0:02:36]} 11. dxc5 {[%clk 0:02:45]}  Nxc5 {[%clk 0:02:33]} 12. Bf3 {[%clk 0:02:42]}  Be6 {[%clk 0:02:31]} 13. O-O-O {[%clk 0:02:36]}  Qa5 {[%clk 0:02:16]} 14. Kb1 {[%clk 0:02:32]}  Rd8 {[%clk 0:02:14]} 15. Qd4 {[%clk 0:02:13]}  Qb6 {[%clk 0:01:58]} 16. Na4 {[%clk 0:02:02]}  Nxa4 {[%clk 0:01:52]} 17. Qxa4+ {[%clk 0:02:03]}  Kf8 {[%clk 0:01:43]} 18. Rd3 {[%clk 0:02:03]}  Kg8 {[%clk 0:01:34]} 19. Rb3 {[%clk 0:02:00]}  Qa7 {[%clk 0:01:34]} 20. Qd4 {[%clk 0:01:56]}  Qxd4 {[%clk 0:01:22]} 21. exd4 {[%clk 0:01:57]}  b5 {[%clk 0:01:22]} 22. Nc6 {[%clk 0:01:56]}  Rd7 {[%clk 0:01:08]} 23. Nb8 {[%clk 0:01:53]}  Ra7 {[%clk 0:01:06]} 24. Ra3 {[%clk 0:01:46]}  Ne4 {[%clk 0:00:52]} 25. Bxe4 {[%clk 0:01:35]}  dxe4 {[%clk 0:00:53]} 26. Nc6 {[%clk 0:01:35]}  Rd7 {[%clk 0:00:45]} 27. Rxa6 {[%clk 0:01:31]}  Kh7 {[%clk 0:00:43]} 28. c3 {[%clk 0:01:24]}  Rc8 {[%clk 0:00:32]} 29. Nb4 {[%clk 0:01:16]}  Bc4 {[%clk 0:00:29]} 30. Re1 {[%clk 0:01:14]}  f5 {[%clk 0:00:28]} 31. a3 {[%clk 0:01:05]}  Bb3 {[%clk 0:00:28]} 32. Bf4 {[%clk 0:01:02]}  Bf6 {[%clk 0:00:27]} 33. g3 {[%clk 0:01:01]}  Kg7 {[%clk 0:00:27]} 34. Nc6 {[%clk 0:00:55]}  Bc4 {[%clk 0:00:25]} 35. Ne5 {[%clk 0:00:54]}  Bxe5 {[%clk 0:00:23]} 36. Bxe5+ {[%clk 0:00:55]}  Kf7 {[%clk 0:00:24]} 37. Rb6 {[%clk 0:00:54]}  Bd3+ {[%clk 0:00:20]} 38. Kc1 {[%clk 0:00:53]}  Ra7 {[%clk 0:00:17]} 39. Kd2 {[%clk 0:00:52]}  Bc4 {[%clk 0:00:17]} 40. Ke3 {[%clk 0:00:51]}  Rd7 {[%clk 0:00:12]} 41. Kf4 {[%clk 0:00:52]}  e6 {[%clk 0:00:11]} 42. Kg5 {[%clk 0:00:52]}  Bd3 {[%clk 0:00:11]} 43. Ra1 {[%clk 0:00:51]}  Ra7 {[%clk 0:00:10]} 44. Rd6 {[%clk 0:00:50]}  Bc4 {[%clk 0:00:09]} 45. Rb6 {[%clk 0:00:48]}  Bd3 {[%clk 0:00:09]} 46. d5 {[%clk 0:00:49]}  Bc4 {[%clk 0:00:07]} 47. dxe6+ {[%clk 0:00:45]}  Bxe6 {[%clk 0:00:07]} 48. Rd1 {[%clk 0:00:45]}  Re8 {[%clk 0:00:03]} 49. Rdd6 {[%clk 0:00:45]}  Ree7 {[%clk 0:00:03]} 50. Bd4 {[%clk 0:00:43]}  Rab7 {[%clk 0:00:02]} 51. Rxe6 {[%clk 0:00:42]} 1-0


[Site "https://www.chess.com"]